fUSD/lending_fUSD_20240104
["ID","MTS","AMOUNT","RATE_DAILY","PERIOD"]
[310222235,1704402722798,-623.24,0.00036712,2]
[310222236,1704402722808,-1071.01,0.00036712,2]
[310222237,1704402722817,-619.17617016,0.00036712,2]
[310222238,1704402722826,-1080.17,0.00036712,2]
[310222239,1704402722835,-500.0,0.00036712,2]
[310222240,1704402722845,-500.0,0.00036712,2]
[310222241,1704402722854,-2123.54,0.00036712,2]
[310222242,1704402722863,-326.63127044,0.00036712,2]
[310222243,1704402722872,-403.87764967,0.00036712,2]
[310222244,1704402722881,-500.0,0.00036712,2]
[310222245,1704402722890,-531.94456623,0.00036712,2]
[310222246,1704402722899,-1276.68,0.00036712,2]
[310222247,1704402722908,-500.0,0.00036712,2]
[310222248,1704402722918,-500.0,0.00036712,2]
[310222249,1704402722927,-500.0,0.00036712,2]
[310222250,1704402722936,-500.0,0.00036712,2]
[310222251,1704402722946,-190.21,0.00036712,2]
[310222252,1704402722954,-500.0,0.00036712,2]
[310222253,1704402722965,-500.0,0.00036712,2]
[310222254,1704402722975,-2290.92,0.00036712,2]
[310222255,1704402722985,-5464.43,0.00036712,2]
[310222256,1704402722994,-1286.86,0.00036712,2]
[310222257,1704402723005,-543.96,0.00036712,2]
[310222258,1704402723017,-623.16,0.00036712,2]
[310222259,1704402723026,-500.0,0.00036712,2]
[310222260,1704402723035,-1530.15,0.00036712,2]
[310222261,1704402723046,-2181.99,0.00036712,2]
[310222262,1704402723056,-500.0,0.00036712,2]
[310222263,1704402723066,-3262.68,0.00036712,2]
[310222264,1704402723075,-1391.97,0.00036712,2]
[310222265,1704402723085,-756.79,0.00036712,2]
[310222266,1704402723094,-618.7,0.00036712,2]
[310222267,1704402723104,-1812.71,0.00036712,2]
[310222268,1704402723113,-500.0,0.00036712,2]
[310222269,1704402723124,-500.0,0.00036712,2]
[310222270,1704402723133,-500.0,0.00036712,2]
[310222271,1704402723144,-927.7,0.00036712,2]
[310222272,1704402723154,-709.7,0.00036712,2]
[310222273,1704402723163,-500.0,0.00036712,2]
[310222274,1704402723174,-1742.56,0.00036712,2]
[310222275,1704402723183,-500.0,0.00036712,2]
[310222276,1704402723193,-500.0,0.00036712,2]
[310222277,1704402723203,-910.81,0.00036712,2]
[310222278,1704402723212,-500.0,0.00036712,2]
[310222279,1704402723222,-500.0,0.00036712,2]
[310222280,1704402723231,-500.0,0.00036712,2]
[310222281,1704402723240,-1009.55,0.00036712,2]
[310222282,1704402723251,-1739.77,0.00036712,2]
[310222283,1704402723260,-500.0,0.00036712,2]
[310222284,1704402723270,-500.0,0.00036712,2]
[310222285,1704402723279,-500.0,0.00036712,2]
[310222286,1704402723288,-500.0,0.00036712,2]
[310222287,1704402723297,-1282.1,0.00036712,2]
[310222288,1704402723307,-500.0,0.00036712,2]
[310222289,1704402723316,-6408.05,0.00036712,2]
[310222290,1704402723326,-2129.19,0.00036712,2]
[310222291,1704402723335,-1154.96,0.00036712,2]
[310222292,1704402723345,-1729.84,0.00036712,2]
[310222293,1704402723355,-500.0,0.00036712,2]
[310222294,1704402723365,-500.0,0.00036712,2]
[310222295,1704402723375,-500.0,0.00036712,2]
[310222296,1704402723385,-913.73,0.00036712,2]
[310222297,1704402723395,-500.0,0.00036712,2]
[310222298,1704402723405,-500.0,0.00036712,2]
[310222299,1704402723417,-2264.53,0.00036712,2]
[310222300,1704402723427,-4842.28,0.00036712,2]
[310222301,1704402723437,-500.0,0.00036712,2]
[310222302,1704402723446,-500.0,0.00036712,2]
[310222303,1704402723455,-2281.55,0.00036712,2]
[310222304,1704402723466,-500.0,0.00036712,2]
[310222305,1704402723475,-500.0,0.00036712,2]
[310222306,1704402723485,-500.0,0.00036712,2]
[310222307,1704402723496,-500.0,0.00036712,2]
[310222308,1704402723506,-500.0,0.00036712,2]
[310222309,1704402723516,-500.0,0.00036712,2]
[310222310,1704402723525,-539.42,0.00036712,2]
[310222311,1704402723535,-983.89,0.00036712,2]
[310222312,1704402723544,-500.0,0.00036712,2]
[310222313,1704402723554,-500.0,0.00036712,2]
[310222314,1704402723563,-500.0,0.00036712,2]
[310222315,1704402723572,-500.0,0.00036712,2]
[310222316,1704402723582,-1154.67,0.00036712,2]
[310222317,1704402723592,-599.93,0.00036712,2]
[310222318,1704402723601,-616.54,0.00036712,2]
[310222319,1704402723618,-1525.72,0.00036712,2]
[310222320,1704402723627,-613.63,0.00036712,2]
[310222321,1704402723637,-637.93,0.00036712,2]
[310222322,1704402723646,-500.0,0.00036712,2]
[310222323,1704402723656,-500.0,0.00036712,2]
[310222324,1704402723666,-878.05,0.00036712,2]
[310222325,1704402723675,-500.0,0.00036712,2]
[310222326,1704402723684,-902.92,0.00036712,2]
[310222327,1704402723694,-500.0,0.00036712,2]
[310222328,1704402723703,-500.0,0.00036712,2]
[310222329,1704402723712,-589.16,0.00036712,2]
[310222330,1704402723722,-500.0,0.00036712,2]
[310222331,1704402723731,-500.0,0.00036712,2]
[310222332,1704402723741,-500.0,0.00036712,2]
[310222333,1704402723751,-984.56,0.00036712,2]
[310222334,1704402723760,-500.0,0.00036712,2]
[310222335,1704402723770,-563.07,0.00036712,2]
[310222336,1704402723779,-500.0,0.00036712,2]
[310222337,1704402723788,-2695.69,0.00036712,2]
[310222338,1704402723797,-786.61,0.00036712,2]
[310222339,1704402723806,-1449.26,0.00036712,2]
[310222340,1704402723815,-6403.69,0.00036712,2]
[310222341,1704402723824,-565.56,0.00036712,2]
[310222342,1704402723834,-573.87,0.00036712,2]
[310222343,1704402723843,-500.0,0.00036712,2]
[310222344,1704402723852,-750.62,0.00036712,2]
[310222345,1704402723860,-1503.12,0.00036712,2]
[310222346,1704402723870,-500.0,0.00036712,2]
[310222347,1704402723879,-500.0,0.00036712,2]
[310222348,1704402723889,-515.26,0.00036712,2]
[310222349,1704402723898,-500.0,0.00036712,2]
[310222350,1704402723907,-500.0,0.00036712,2]
[310222351,1704402723916,-1352.57,0.00036712,2]
[310222352,1704402723925,-500.0,0.00036712,2]
[310222353,1704402723935,-4498.58,0.00036712,2]
[310222354,1704402723945,-1460.37,0.00036712,2]
[310222355,1704402723954,-647.5,0.00036712,2]
[310222356,1704402723963,-500.0,0.00036712,2]
[310222357,1704402723972,-500.0,0.00036712,2]
[310222358,1704402723981,-895.41,0.00036712,2]
[310222359,1704402723990,-500.0,0.00036712,2]
[310222360,1704402724000,-500.0,0.00036712,2]
[310222361,1704402724012,-500.0,0.00036712,2]
[310222362,1704402724022,-500.0,0.00036712,2]
[310222363,1704402724031,-500.0,0.00036712,2]
[310222364,1704402724041,-500.0,0.00036712,2]
[310222365,1704402724051,-761.85,0.00036712,2]
[310222366,1704402724060,-500.0,0.00036712,2]
[310222367,1704402724070,-500.0,0.00036712,2]
[310222368,1704402724080,-2111.24,0.00036712,2]
[310222369,1704402724090,-500.0,0.00036712,2]
[310222370,1704402724100,-1731.46,0.00036712,2]
[310222371,1704402724109,-928.81,0.00036712,2]
[310222372,1704402724119,-1123.24,0.00036712,2]
[310222373,1704402724128,-1937.57,0.00036712,2]
[310222374,1704402724137,-550.84,0.00036712,2]
[310222375,1704402724146,-500.0,0.00036712,2]
[310222376,1704402724156,-500.0,0.00036712,2]
[310222377,1704402724166,-500.0,0.00036712,2]
[310222378,1704402724176,-504.38,0.00036712,2]
[310222379,1704402724186,-1072.15,0.00036712,2]
[310222380,1704402724195,-729.82,0.00036712,2]
[310222381,1704402724206,-500.0,0.00036712,2]
[310222382,1704402724216,-500.0,0.00036712,2]
[310222383,1704402724225,-2257.92,0.00036712,2]
[310222384,1704402724234,-574.90739113,0.00036712,2]
[310222385,1704402724243,-1167.4,0.00036712,2]
[310222386,1704402724254,-831.43,0.00036712,2]
[310222387,1704402724263,-1414.25,0.00036712,2]
[310222388,1704402724272,-1040.38,0.00036712,2]
[310222389,1704402724282,-500.0,0.00036712,2]
[310222390,1704402724292,-500.0,0.00036712,2]
[310222391,1704402724301,-828.1,0.00036712,2]
[310222392,1704402724310,-469.09,0.00036712,2]
[310222393,1704402724319,-500.0,0.00036712,2]
[310222394,1704402724328,-500.0,0.00036712,2]
[310222395,1704402724338,-500.0,0.00036712,2]
[310222396,1704402724347,-500.0,0.00036712,2]
[310222397,1704402724357,-678.15,0.00036712,2]
[310222398,1704402724366,-500.0,0.00036712,2]
[310222399,1704402724375,-500.0,0.00036712,2]
[310222400,1704402724385,-210.86,0.00036712,2]
[310222401,1704402724395,-1448.36,0.00036712,2]
[310222402,1704402724404,-151.0,0.00036712,7]
[310222403,1704402724413,-150.0,0.00036725,2]
[310222404,1704402724423,-191.28567206,0.00036734,14]
[310222405,1704402724432,-1000.0,0.0003675,2]
[310222406,1704402724441,-150.0,0.00036762,2]
[310222407,1704402724451,-19638.0,0.00036773,2]
[310222408,1704402724460,-191.28567206,0.00036775,14]
[310222409,1704402724469,-150.0,0.000368,26]
[310222410,1704402724478,-2316.0,0.00036803,20]
[310222411,1704402724487,-578.0,0.00036803,20]
[310222412,1704402724498,-434.0,0.00036803,20]
[310222413,1704402724507,-150.0,0.00036843,2]
[310222414,1704402724516,-150.0,0.00036856,2]
[310222415,1704402724526,-500.0,0.00036862,7]
[310222416,1704402724535,-150.0,0.00036902,2]
[310222417,1704402724545,-151.0,0.00036923,7]
[310222418,1704402724554,-1361.28196526,0.00036927,9]
[310222419,1704402724564,-1361.28196517,0.00036927,9]
[310222420,1704402724573,-1361.28196517,0.00036927,9]
[310222421,1704402724584,-1361.28196517,0.00036927,9]
[310222422,1704402724594,-1361.28196517,0.00036927,9]
[310222423,1704402724603,-511.16,0.00036986,2]
[310222424,1704402724613,-500.0,0.00036986,2]
[310222425,1704402724622,-554.75,0.00036986,2]
[310222426,1704402724632,-500.0,0.00036986,2]
[310222427,1704402724642,-500.0,0.00036986,2]
[310222428,1704402724802,-500.0,0.00036986,2]
[310222429,1704402724813,-500.0,0.00036986,2]
[310222430,1704402724823,-500.0,0.00036986,2]
[310222431,1704402724832,-500.0,0.00036986,2]
[310222432,1704402724841,-500.0,0.00036986,2]
[310222433,1704402724851,-500.0,0.00036986,2]
[310222434,1704402724861,-500.0,0.00036986,2]
[310222435,1704402724870,-500.0,0.00036986,2]
[310222436,1704402724880,-482.8,0.00036986,2]
[310222437,1704402724889,-1160.79,0.00036986,2]
[310222438,1704402724898,-500.0,0.00036986,2]
[310222439,1704402724907,-1000.0,0.00036986,4]
[310222440,1704402724917,-1000.0,0.00036986,4]
[310222441,1704402724927,-1000.0,0.00036986,4]
[310222442,1704402724936,-1000.0,0.00036986,4]
[310222443,1704402724946,-1000.0,0.00036986,4]
[310222444,1704402724955,-1000.0,0.00036986,4]
[310222445,1704402724964,-1000.0,0.00036986,4]
[310222446,1704402724974,-1000.0,0.00036986,4]
[310222447,1704402724983,-1000.0,0.00036986,4]
[310222448,1704402724992,-1000.0,0.00036986,4]
[310222449,1704402725004,-1000.0,0.00036986,4]
[310222450,1704402725013,-1000.0,0.00036986,4]
[310222451,1704402725023,-1000.0,0.00036986,4]
[310222452,1704402725033,-1000.0,0.00036986,4]
[310222453,1704402725043,-878.24249505,0.00036986,4]
[310222454,1704402725053,-738.09,0.00036986,2]
[310222455,1704402725063,-807.57,0.00036986,2]
[310222456,1704402725073,-527.72,0.00036986,2]
[310222457,1704402725083,-687.6,0.00036986,2]
[310222458,1704402725092,-500.0,0.00036986,2]
[310222459,1704402725102,-500.0,0.00036986,2]
[310222460,1704402725112,-500.0,0.00036986,2]
[310222461,1704402725121,-500.0,0.00036986,2]
[310222462,1704402725131,-500.0,0.00036986,2]
[310222463,1704402725141,-500.0,0.00036986,2]
[310222464,1704402725151,-602.44,0.00036986,2]
[310222465,1704402725160,-660.7,0.00036986,2]
[310222466,1704402725171,-722.69,0.00036986,2]
[310222467,1704402725181,-598.95,0.00036986,2]
[310222468,1704402725191,-500.0,0.00036986,2]
[310222469,1704402725200,-541.66,0.00036986,2]
[310222470,1704402725210,-500.0,0.00036986,2]
[310222471,1704402725220,-500.0,0.00036986,2]
[310222472,1704402725230,-505.83,0.00036986,2]
[310222473,1704402725241,-500.0,0.00036986,2]
[310222474,1704402725254,-126.89398691,0.00036986,2]
[310222475,1704402725292,-373.10601309,0.00036986,2]
[310222476,1704402725302,-500.0,0.00036986,2]
[310222477,1704402725312,-500.0,0.00036986,2]
[310222478,1704402725322,-718.72,0.00036986,2]
[310222479,1704402725333,-680.79,0.00036986,2]
[310222480,1704402725344,-500.0,0.00036986,2]
[310222481,1704402725354,-500.0,0.00036986,2]
[310222482,1704402725364,-1621.27,0.00036986,2]
[310222483,1704402725373,-500.0,0.00036986,2]
[310222484,1704402725383,-500.0,0.00036986,2]
[310222485,1704402725393,-500.0,0.00036986,2]
[310222486,1704402725402,-738.09,0.00036986,2]
[310222487,1704402725413,-519.11,0.00036986,2]
[310222488,1704402725422,-754.73,0.00036986,2]
[310222489,1704402725434,-578.29,0.00036986,2]
[310222490,1704402725444,-500.0,0.00036986,2]
[310222491,1704402725454,-500.0,0.00036986,2]
[310222492,1704402725463,-500.0,0.00036986,2]
[310222493,1704402725474,-500.0,0.00036986,2]
[310222494,1704402725484,-947.06,0.00036986,2]
[310222495,1704402725494,-1076.04,0.00036986,2]
[310222496,1704402725506,-500.0,0.00036986,2]
[310222497,1704402725517,-541.45,0.00036986,2]
[310222498,1704402725526,-519.94,0.00036986,2]
[310222499,1704402725536,-596.45,0.00036986,2]
[310222500,1704402725546,-570.54,0.00036986,2]
[310222501,1704402725557,-917.54,0.00036986,2]
[310222502,1704402725567,-639.13,0.00036986,2]
[310222503,1704402725578,-500.0,0.00036986,2]
[310222504,1704402725588,-500.0,0.00036986,2]
[310222505,1704402725598,-642.46,0.00036986,2]
[310222506,1704402725608,-774.28,0.00036986,2]
[310222507,1704402725617,-500.0,0.00036986,2]
[310222508,1704402725628,-665.84,0.00036986,2]
[310222509,1704402725639,-500.0,0.00036986,2]
[310222510,1704402725649,-500.0,0.00036986,2]
[310222511,1704402725659,-500.0,0.00036986,2]
[310222512,1704402725669,-500.0,0.00036986,2]
[310222513,1704402725680,-539.3467995,0.00036986,2]
[310222514,1704402725690,-564.52,0.00036986,2]
[310222515,1704402725700,-520.83,0.00036986,2]
[310222516,1704402725710,-1863.96,0.00036986,2]
[310222517,1704402725719,-558.46093114,0.00036986,2]
[310222518,1704402725729,-533.03,0.00036986,2]
[310222519,1704402725739,-1044.47,0.00036986,2]
[310222520,1704402725751,-87.82205018,0.00036986,2]
[310222521,1704402725766,-443.64794982,0.00036986,2]
[310222522,1704402725776,-466.42331018,0.00036986,2]
[310222523,1704402725814,-366.49928082,0.00022899,2]
[310222524,1704402725826,-519.84391835,0.00022899,2]
[310222525,1704402725838,-280.27417697,0.00022899,2]
[310222526,1704402725850,-379.24221432,0.00022899,2]
[310222527,1704403078606,600.0,0.00029,30]
[310222528,1704403107161,1049.999999,0.00029,30]
[310222529,1704403358705,-155.0,0.00022785,2]
[310222530,1704403358725,-158.19187935,0.00022786,2]
[310222531,1704403358744,-246.41184057,0.00022787,2]
[310222532,1704403358763,-522.36940647,0.00022787,2]
[310222533,1704403358782,-1036.36520932,0.00022789,2]
[310222534,1704403358803,-179.0,0.00022792,2]
[310222535,1704403358823,-165.06884231,0.00022799,2]
[310222536,1704403358844,-773.69941193,0.00022898,2]
[310222537,1704403358862,-408.90375688,0.00022898,2]
[310222538,1704403358881,-150.0,0.00022898,2]
[310222539,1704403358900,-150.0,0.00022898,2]
[310222540,1704403358919,-759.31638692,0.00022899,2]
[310222541,1704403358937,-1468.45441501,0.00022899,2]
[310222542,1704403358956,-672.17333778,0.00022899,2]
[310222543,1704403358976,-5260.12648064,0.00022899,2]
[310222544,1704403358996,-2819.23673055,0.00022899,2]
[310222545,1704403531747,378.18681598,0.00022899,2]
[310222546,1704403535660,1220.38848696,0.00022899,2]
[310222547,1704403536244,282.01678762,0.00022899,2]
[310222548,1704403552268,195.09021171,0.00022899,2]
[310222549,1704403597242,170.32,0.00016712,2]
[310222550,1704403649824,-587.166525,0.0002267,2]
[310222551,1704403649844,-383.06666302,0.00022784,2]
[310222552,1704403649863,-200.0,0.00022785,2]
[310222553,1704403649882,-150.0,0.00022898,2]
[310222554,1704403649903,-86.92657591,0.00022899,2]
[310222555,1704403649922,-1022.68700567,0.00022899,2]
[310222556,1704403649952,-3150.1532304,0.00022899,2]
[310222557,1704403664264,385.36797441,0.0002,2]
[310222558,1704403733112,-7487.48797482,0.00022898,2]
[310222559,1704403733137,-2512.51202518,0.00022899,2]
[310222560,1704403746978,-6638.39787845,0.00022899,2]
[310222561,1704403747003,-987.31885076,0.00022899,2]
[310222575,1704403774435,-151.0,0.00022785,2]
[310222585,1704403832049,-0.1906815,0.00022785,2]
[310222586,1704403832060,-300.0,0.00026069,2]
[310222588,1704403832073,-10.87170035,0.000265,2]
[310222590,1704403832088,-1666.12829965,0.000265,2]
[310222591,1704403832101,-159.63562873,0.00026898,2]
[310222592,1704403832112,-300.0,0.00026997,2]
[310222593,1704403832124,-150.0,0.00026997,2]
[310222594,1704403832135,-2626.75372194,0.00026998,2]
[310222595,1704403832148,-161.27389787,0.00026998,2]
[310222596,1704403832159,-1365.93977096,0.00026998,2]
[310222597,1704403832196,-968.97329241,0.00026998,2]
[310222598,1704403832221,-2212.92722309,0.00026998,2]
[310222599,1704403832234,-581.61,0.00026998,2]
[310222600,1704403832247,-904.59890069,0.00026998,2]
[310222601,1704403832263,-1304.54536121,0.00026998,2]
[310222602,1704403832277,-2682.83867055,0.00026998,2]
[310222603,1704403832292,-470.97673769,0.00026998,2]
[310222604,1704403832303,-495.86910751,0.00026998,2]
[310222605,1704403832320,-1413.34649912,0.00026998,2]
[310222606,1704403832331,-433.10408275,0.00026998,2]
[310222607,1704403832345,-547.4688403,0.00026998,2]
[310222608,1704403832364,-2866.90347338,0.00026998,2]
[310222609,1704403832375,-284.48599854,0.00026998,2]
[310222610,1704403832387,-523.53043704,0.00026998,2]
[310222611,1704403832398,-250.0,0.00027,3]
[310222612,1704403832410,-1839.98833104,0.00027,2]
[310222613,1704403832424,-3646.68942572,0.00027,2]
[310222614,1704403832439,-5386.00224324,0.00027,2]
[310222615,1704403832451,-348.43349945,0.00027,2]
[310222617,1704403832466,-707.59928683,0.00027,2]
[310222618,1704403832482,-318.3761138,0.00027,2]
[310222619,1704403832497,-1123.49064371,0.00027,2]
[310222620,1704403832521,-1041.55891796,0.00027,2]
[310222621,1704403832534,-933.86115908,0.00027,2]
[310222622,1704403832547,-2521.21116859,0.00027,2]
[310222623,1704403832565,-553.23029445,0.00027,2]
[310222624,1704403832580,-1658.94787253,0.00027,2]
[310222658,1704403838145,-793.2810436,0.00027,2]
[310222659,1704403838156,-28.16701802,0.00027,2]
[310222660,1704403838171,-797.308,0.00027,2]
[310222661,1704403838256,-344.97498198,0.00027,2]
[310222662,1704403838267,-622.8,0.00027,2]
[310222663,1704403838280,-519.4530651,0.00027856,2]
[310222664,1704403838291,-769.2111929,0.00028854,2]
[310222665,1704403838301,-449.65,0.00028933,2]
[310222666,1704403838312,-300.0,0.00029,3]
[310222667,1704403838323,-155.0,0.00029,2]
[310222668,1704403838335,-507.16407218,0.00029,2]
[310222669,1704403838346,-160.0,0.00029,2]
[310222670,1704403838358,-155.0,0.00029,2]
[310222671,1704403838370,-155.0,0.00029,2]
[310222672,1704403838380,-282.72095131,0.00029,2]
[310222673,1704403838390,-210.0,0.00029697,2]
[310222674,1704403838402,-600.0,0.0003,31]
[310222675,1704403838413,-200.0,0.000301,2]
[310222676,1704403838425,-608.12,0.00030127,2]
[310222677,1704403838437,-568.97,0.0003013,2]
[310222678,1704403838452,-184.73,0.00030202,2]
[310222679,1704403838462,-192.07,0.00030248,2]
[310222680,1704403838474,-156.25,0.00030402,2]
[310222681,1704403838486,-250.0,0.00030533,2]
[310222682,1704403838498,-166.08,0.00030567,2]
[310222683,1704403838509,-150.0,0.00030611,2]
[310222684,1704403838521,-200.0,0.00030631,2]
[310222685,1704403838532,-163.66,0.00030663,2]
[310222686,1704403838543,-156.45,0.00030808,2]
[310222688,1704403838554,-871.33907656,0.0003082,4]
[310222689,1704403838564,-1000.0,0.00030851,2]
[310222690,1704403838576,-2000.0,0.00030851,2]
[310222691,1704403838588,-927.64,0.00030851,2]
[310222692,1704403838599,-155.45,0.00030851,2]
[310222693,1704403838610,-685.25,0.00030851,2]
[310222694,1704403838621,-250.0,0.00030851,2]
[310222695,1704403838632,-1731.45,0.00030851,2]
[310222696,1704403838643,-6911.02,0.00030851,2]
[310222697,1704403838654,-156.45,0.00030923,2]
[310222698,1704403838665,-350.0,0.00031,3]
[310222699,1704403838676,-600.0,0.00031,32]
[310222700,1704403838686,-927.64,0.00031029,2]
[310222701,1704403838697,-156.45,0.00031037,2]
[310222702,1704403838708,-156.45,0.00031152,2]
[310222703,1704403838719,-159.14,0.00031159,2]
[310222704,1704403838729,-449.65,0.00031197,2]
[310222705,1704403838739,-927.64,0.00031207,2]
[310222706,1704403838750,-156.45,0.00031267,2]
[310222707,1704403838761,-156.45,0.00031381,2]
[310222708,1704403838773,-927.64,0.00031385,2]
[310222709,1704403838783,-156.25,0.00031455,2]
[310222710,1704403838794,-156.45,0.00031496,2]
[310222711,1704403838804,-154.86,0.00031514,2]
[310222712,1704403838815,-927.64,0.00031564,2]
[310222713,1704403838826,-156.45,0.0003161,2]
[310222714,1704403838836,-3301.806,0.00031642,2]
[310222715,1704403838847,-156.45,0.00031725,2]
[310222716,1704403838858,-927.64,0.00031742,2]
[310222717,1704403838869,-156.45,0.0003184,2]
[310222718,1704403838879,-500.0,0.00031876,2]
[310222719,1704403838891,-927.64,0.0003192,2]
[310222720,1704403838902,-156.45,0.00031954,2]
[310222721,1704403838914,-1070.67939052,0.00031971,2]
[310222722,1704403838925,-1070.67939052,0.00031975,2]
[310222723,1704403838935,-1070.67939052,0.00031978,2]
[310222724,1704403838947,-1070.67939052,0.00032,2]
[310222725,1704403838958,-600.0,0.00032,33]
[310222726,1704403838968,-769.2111929,0.00032045,2]
[310222727,1704403838979,-156.45,0.00032069,2]
[310222728,1704403838990,-203.24518375,0.00032087,2]
[310222729,1704403839000,-471.80282371,0.00032095,4]
[310222730,1704403839010,-196.11052816,0.00032095,4]
[310222731,1704403839021,-264.6466645,0.00032096,4]
[310222732,1704403839031,-7483.87215684,0.00032096,4]
[310222733,1704403839041,-3799.48780711,0.00032097,4]
[310222776,1704403839480,-293.19984864,0.00032097,4]
[310222782,1704403839532,-29194.98313905,0.00032097,4]
[310222785,1704403839541,-927.64,0.00032098,2]
[310222787,1704403839551,-171.14,0.00032145,2]
[310222789,1704403839561,-156.45,0.00032184,2]
[310222791,1704403839572,-927.64,0.00032277,2]
[310222793,1704403839582,-156.45,0.00032298,2]
[310222794,1704403839590,-156.45,0.00032413,2]
[310222796,1704403839600,-547.80678023,0.00032442,4]
[310222799,1704403839610,-233.65624485,0.00032443,4]
[310222801,1704403839619,-281.80987674,0.00032444,4]
[310222803,1704403839629,-1331.25921981,0.00032444,4]
[310222805,1704403839638,-246.15177983,0.00032444,4]
[310222806,1704403839648,-927.64,0.00032455,2]
[310222809,1704403839657,-156.25,0.00032509,2]
[310222811,1704403839667,-366.7615768,0.00032545,4]
[310222813,1704403839676,-974.3553195,0.00032664,4]
[310222815,1704403839685,-203.24518375,0.00032664,2]
[310222817,1704403839696,-10078.0231,0.00032674,2]
[310222819,1704403839705,-264273.62419825,0.00032674,2]
[310222821,1704403839718,-1344.06272,0.00032674,2]
[310222823,1704403839729,-3131.49725052,0.00032674,2]
[310222825,1704403839740,-1155.98365954,0.00032674,2]
[310222828,1704403839752,-1216.78148707,0.00032674,2]
[310222830,1704403839768,-1074.25249537,0.00032674,2]
[310222833,1704403839788,-837.07703542,0.00032674,2]
[310222836,1704403839800,-2705.67645439,0.00032674,2]
[310222998,1704403841344,-124107.83429944,0.00032674,2]
[310223000,1704403841354,-1532.0509,0.00032674,2]
[310223002,1704403841365,-1000.0,0.00032676,2]
[310223004,1704403841375,-2500.0,0.00032676,2]
[310223006,1704403841384,-175.77,0.000327,2]
[310223008,1704403841393,-179.32441234,0.00032772,4]
[310223010,1704403841403,-217.72760639,0.00032772,4]
[310223012,1704403841413,-158.10336993,0.00032772,4]
[310223014,1704403841422,-210.86110643,0.00032772,4]
[310223016,1704403841432,-308.1829758,0.00032773,2]
[310223018,1704403841442,-155.36858348,0.00032773,4]
[310223020,1704403841451,-536.83806659,0.00032773,4]
[310223023,1704403841461,-1224.82812993,0.00032773,4]
[310223025,1704403841471,-51354.3117,0.00032774,2]
[310223027,1704403841480,-100000.0,0.00032776,2]
[310223029,1704403841489,-936.1967,0.00032776,2]
[310223031,1704403841499,-1889.6089,0.00032776,2]
[310223033,1704403841508,-500.0,0.00032776,2]
[310223035,1704403841517,-40325.3741,0.00032776,2]
[310223037,1704403841527,-55555.0,0.00032776,3]
[310223039,1704403841536,-151.69832518,0.00032776,2]
[310223041,1704403841546,-166.59384665,0.00032872,4]
[310223043,1704403841557,-222.41410394,0.00032872,4]
[310223045,1704403841567,-200.06257653,0.00032872,4]
[310223047,1704403841577,-301.28698158,0.00032872,4]
[310223049,1704403841587,-739.67911281,0.00032872,4]
[310223051,1704403841597,-961.86905458,0.00032873,4]
[310223053,1704403841606,-722.60728225,0.00032874,4]
[310223055,1704403841616,-23322.24035882,0.00032874,2]
[310223057,1704403841626,-71089.13204899,0.00032874,4]
[310223060,1704403841636,-2159.44711299,0.00032874,2]
[310223062,1704403841646,-289.81984023,0.00032875,4]
[310223064,1704403841655,-648.54525274,0.00032876,2]